bitfinex/quotes_SOLUSD_20250422
["timestamp","ask_amount","ask_price","bid_price","bid_amount"]
[1745327730597,16.65082175,142.48,142.43,16.65082175]
[1745327730763,16.65082175,142.47,142.42,16.65082175]
[1745327730967,23.67080694,142.46,142.42,16.65082175]
[1745327731264,7.01998519,142.46,142.42,26.47054826]
[1745327731662,33.49053345,142.46,142.42,26.47054826]
[1745327732195,7.01803635,142.49,142.45,26.47054826]
[1745327732493,7.01803635,142.49,142.47,26.47054826]
[1745327732990,8.59695862,142.5,142.47,26.47054826]
[1745327733379,8.59686427,142.5,142.41,15.46]
[1745327733572,8.59686427,142.5,142.47,26.47054826]
[1745327733774,1.5792,142.5,142.49,26.47054826]
[1745327733996,7.01714506,142.51,142.49,26.47054826]
[1745327734299,0.03,142.53,142.5,26.47054826]
[1745327734466,0.03,142.53,142.51,26.47054826]
[1745327735076,0.03,142.53,142.46,15.46]
[1745327735077,0.03,142.53,142.52,26.47054826]
[1745327737101,0.03,142.53,142.51,15.46]
[1745327737283,0.03,142.53,142.51,41.93054826]
[1745327737815,0.03,142.53,142.52,26.47054826]
[1745327738906,0.03,142.53,142.52,52.94109652]
[1745327739089,0.03,142.53,142.52,26.47054826]
[1745327739279,0.03,142.53,142.52,52.94109652]
[1745327739881,0.03,142.53,142.52,26.47054826]
[1745327740286,0.03,142.53,142.52,135.54109652]
[1745327740503,0.03,142.53,142.52,161.54109652]
[1745327740821,0.03,142.59,142.57,26.47054826]
[1745327741136,0.03,142.59,142.57,41.91054826]
[1745327741711,0.03,142.59,142.57,15.44]
[1745327742414,0.03,142.59,142.57,41.91054826]
[1745327742605,0.03,142.59,142.57,15.44]
[1745327743008,0.03,142.59,142.57,41.91054826]
[1745327743412,0.03,142.59,142.58,26.47054826]
[1745327744304,27.61818096,142.7,142.59,108.57]
[1745327744614,1.1476327,142.7,142.66,26.47054826]
[1745327744822,1.1476327,142.7,142.67,15.44]
[1745327744992,8.15535045,142.7,142.67,15.44]
[1745327745200,1.1476327,142.7,142.67,41.91054826]
[1745327745790,1.1476327,142.7,142.67,124.48054826]
[1745327747499,1.1476327,142.7,142.69,26.0]
[1745327747707,1.1476327,142.7,142.69,135.04054826]
[1745327747897,1.1476327,142.7,142.69,375.48054826]
[1745327748424,0.1,142.75,142.7,52.94109652]
[1745327748598,0.1,142.75,142.7,82.57]
[1745327748797,26.57054826,142.75,142.71,15.44]
[1745327749005,0.1,142.75,142.71,41.91054826]
[1745327749619,7.7868443,142.75,142.72,15.44]
[1745327749927,7.7868443,142.75,142.67,82.57]
[1745327750109,34.25739256,142.75,142.71,26.47054826]
[1745327750428,26.47054826,142.73,142.66,240.44]
[1745327750613,33.7868443,142.75,142.67,15.44]
[1745327750811,33.7868443,142.75,142.68,26.47054826]
[1745327750812,51.29997915,142.75,142.68,26.47054826]
[1745327751008,51.29997915,142.75,142.69,26.47054826]
[1745327751009,26.47054826,142.73,142.69,26.47054826]
[1745327751323,7.00819959,142.69,142.66,240.44]
[1745327751731,33.47874785,142.69,142.66,240.44]
[1745327751903,33.47874785,142.69,142.67,15.44]
[1745327752097,26.47054826,142.71,142.67,15.44]
[1745327752322,7.0068494,142.72,142.68,26.47054826]
[1745327752531,0.7815094,142.75,142.71,26.47054826]
[1745327752829,0.7815094,142.75,142.72,41.91054826]
[1745327753126,34.25739757,142.75,142.72,15.44]
[1745327753327,7.78684931,142.75,142.72,15.58]
[1745327753514,34.25739757,142.75,142.72,15.58]
[1745327753698,7.78684931,142.75,142.72,42.05054826]
[1745327754025,0.7815094,142.75,142.74,26.47054826]
[1745327756220,0.7815094,142.75,142.74,109.07054826]
[1745327756429,0.7815094,142.75,142.74,26.47054826]
[1745327757505,0.7815094,142.75,142.72,15.58]
[1745327757928,0.7815094,142.75,142.74,26.47054826]
[1745327758127,0.7815094,142.75,142.73,15.58]
[1745327758431,0.7815094,142.75,142.74,26.47054826]
[1745327758621,0.7815094,142.75,142.74,311.38019712]
[1745327758828,0.7815094,142.75,142.74,267.54105046]
[1745327759028,0.7815094,142.75,142.74,294.01159872]
[1745327759243,0.7815094,142.75,142.74,267.54105046]
[1745327759530,0.7815094,142.75,142.74,241.54105046]
[1745327759719,0.7815094,142.75,142.74,266.73054826]
[1745327760030,0.7815094,142.75,142.74,285.38019712]
[1745327760212,0.03,142.81,142.78,26.0]
[1745327760532,26.47054826,142.89,142.8,52.94109652]
[1745327760830,26.47054826,142.86,142.81,26.47054826]
[1745327761030,16.99352739,142.91,142.83,26.47054826]
[1745327761237,6.99643181,142.93,142.84,15.58]
[1745327761411,26.47054826,143.01,142.9,1.0]
[1745327761747,26.47054826,142.94,142.87,1.0]
[1745327761916,42.69054826,143.01,142.88,1.0]
[1745327762113,26.47054826,142.94,142.88,1.0]
[1745327762313,26.47054826,142.89,142.88,1.0]
[1745327762523,26.47054826,142.89,142.84,16.58]
[1745327762714,26.47054826,142.94,142.79,1.0]
[1745327762715,26.47054826,142.85,142.79,1.0]
[1745327763017,26.47054826,142.87,142.81,1.0]
[1745327763218,26.47054826,142.87,142.77,1.0]
[1745327763510,6.99986,142.86,142.79,1.0]
[1745327763727,6.99986,142.86,142.78,1.0]
[1745327763728,26.47054826,142.8,142.78,1.0]
[1745327763930,26.47054826,142.79,142.78,1.0]
[1745327764139,26.47054826,142.79,142.75,1.0]
[1745327764344,26.47054826,142.76,142.73,1.0]
[1745327764515,26.47054826,142.8,142.72,1.0]
[1745327764713,26.47054826,142.73,142.72,1.0]
[1745327764934,26.47054826,142.73,142.69,1.0]
[1745327765150,18.64964886,142.79,142.69,1.0]
[1745327765434,40.01341678,142.7,142.68,1.0]
[1745327765619,40.01341678,142.69,142.68,1.0]
[1745327765941,40.01341678,142.69,142.64,17.22]
[1745327766228,40.01341678,142.69,142.62,6.4436]
[1745327766229,40.01341678,142.65,142.62,1.0]
[1745327766439,40.01341678,142.65,142.61,0.063]
[1745327766440,40.01341678,142.63,142.61,1.063]
[1745327766626,40.01341678,142.62,142.61,0.063]
[1745327767510,47.0250561,142.62,142.61,0.063]
[1745327768211,40.01341678,142.62,142.61,0.063]
[1745327768607,47.0250561,142.62,142.61,0.063]
[1745327769039,40.01341678,142.62,142.61,0.063]
[1745327769337,40.01341678,142.62,142.55,1.0]
[1745327769338,47.0250561,142.62,142.55,1.0]
[1745327769516,40.01341678,142.58,142.55,1.0]
[1745327769717,40.01341678,142.59,142.56,1.0]
[1745327770013,40.01341678,142.57,142.54,1.0]
[1745327770218,18.64964886,142.61,142.55,1.0]
[1745327770428,40.01341678,142.56,142.55,1.0]
[1745327770738,40.01341678,142.57,142.55,1.0]
[1745327770915,7.01163932,142.62,142.55,1.0]
[1745327771110,40.01341678,142.6,142.55,41.01341678]
[1745327771326,7.01163932,142.62,142.56,1.0]
[1745327771525,24.52526101,142.71,142.59,41.01341678]
[1745327771833,7.00721743,142.71,142.65,40.01341678]
[1745327772009,8.65703147,142.73,142.65,1.0]
[1745327772208,40.01341678,142.68,142.64,1.0]
[1745327772436,40.01341678,142.67,142.62,1.0]
[1745327772634,40.01341678,142.67,142.63,1.0]
[1745327772932,40.01341678,142.67,142.63,41.01341678]
[1745327773130,40.01341678,142.67,142.64,1.0]
[1745327773432,18.64964886,142.72,142.64,41.01341678]
[1745327773634,40.01341678,142.7,142.65,1.0]
[1745327773934,40.01341678,142.69,142.65,1.0]
[1745327774122,40.01341678,142.67,142.63,1.0]
[1745327774323,40.01341678,142.65,142.61,1.0]
[1745327774520,40.01341678,142.64,142.59,1.0]
[1745327774723,40.01341678,142.63,142.58,41.01341678]
[1745327774923,40.01341678,142.62,142.57,41.01341678]
[1745327775158,40.01341678,142.59,142.55,83.6]
[1745327775331,40.01341678,142.58,142.54,1.0]
[1745327775643,40.01341678,142.55,142.54,1.0]
[1745327776347,40.01341678,142.55,142.52,0.063]
[1745327776718,40.01341678,142.54,142.52,0.063]
[1745327776922,7.01398653,142.58,142.52,0.063]
[1745327777116,40.01341678,142.56,142.52,0.063]
[1745327777422,40.01341678,142.54,142.52,0.063]
[1745327777626,40.01341678,142.53,142.52,0.063]
[1745327778237,7.01573721,142.54,142.52,0.063]
[1745327778443,40.01341678,142.53,142.52,0.063]
[1745327778842,66.01341678,142.53,142.47,0.063]
[1745327779149,24.55467364,142.54,142.47,40.07641678]
[1745327779468,7.01262272,142.6,142.53,41.01341678]
[1745327779629,47.0260395,142.6,142.55,40.01341678]
[1745327779825,40.01341678,142.57,142.51,1.0]
[1745327780024,40.01341678,142.56,142.52,40.32123678]
[1745327780218,40.01341678,142.57,142.53,0.30782]
[1745327780529,40.01341678,142.54,142.49,0.30782]
[1745327780920,40.01341678,142.53,142.48,40.32123678]
[1745327781161,18.64964886,142.58,142.5,40.01341678]
[1745327781453,40.01341678,142.52,142.47,17.25082]
[1745327781649,26.0,142.55,142.47,17.25082]
[1745327781849,40.01341678,142.51,142.47,16.943]
[1745327782255,40.01341678,142.5,142.47,0.063]
[1745327782431,40.01341678,142.52,142.47,40.38423678]
[1745327782747,40.01341678,142.53,142.48,40.01341678]
[1745327783047,40.01341678,142.54,142.49,40.32123678]
[1745327783220,40.01341678,142.53,142.48,40.32123678]
[1745327783425,40.01341678,142.52,142.48,0.30782]
[1745327783735,47.0309193,142.51,142.47,0.063]
[1745327784043,47.03011492,142.52,142.47,40.38423678]
[1745327784251,7.01669814,142.52,142.48,40.01341678]
[1745327784429,7.01669814,142.52,142.47,0.37082]
[1745327784631,47.03011492,142.52,142.47,40.07641678]
[1745327784830,47.03011492,142.52,142.47,40.38423678]
[1745327785024,17.53915429,142.54,142.49,40.32123678]
[1745327785025,7.01557457,142.54,142.49,40.32123678]
[1745327785227,35.7552936,142.6,142.53,40.01341678]
[1745327785228,7.01262272,142.6,142.53,40.01341678]
[1745327785540,7.01262272,142.6,142.56,40.01341678]
[1745327785937,7.01216312,142.61,142.57,0.30782]
[1745327786130,47.0255799,142.61,142.57,0.30782]
[1745327786329,47.0255799,142.61,142.55,0.30782]
[1745327786330,7.01216312,142.61,142.55,0.30782]
[1745327786546,40.01341678,142.57,142.53,0.30782]
[1745327786749,40.01341678,142.55,142.51,0.30782]
[1745327786956,40.01341678,142.54,142.5,17.20782]
[1745327787133,40.01341678,142.53,142.49,0.30782]
[1745327787449,18.64964886,142.58,142.49,0.30782]
[1745327787648,7.01409833,142.57,142.52,40.01341678]
[1745327787826,40.01341678,142.56,142.52,40.32123678]
[1745327788149,7.01409833,142.57,142.48,240.82782]
[1745327788150,40.01341678,142.53,142.48,240.82782]
[1745327788327,40.01341678,142.52,142.48,40.32123678]
[1745327788533,43.19899303,142.57,142.5,40.01341678]
[1745327788745,40.01341678,142.55,142.5,40.32123678]
[1745327788948,40.01341678,142.54,142.5,40.32123678]
[1745327789137,40.01341678,142.54,142.5,0.30782]
[1745327789459,18.64964886,142.62,142.54,0.30782]
[1745327789663,40.01341678,142.57,142.55,0.30782]
[1745327789829,40.01341678,142.58,142.53,0.30782]
[1745327790032,47.0265313,142.59,142.54,40.32123678]
[1745327790254,40.01341678,142.58,142.54,0.30782]
[1745327790426,40.01341678,142.57,142.53,0.30782]
[1745327790632,40.01341678,142.56,142.52,0.30782]
[1745327790934,40.01341678,142.54,142.5,0.30782]
[1745327791135,40.01341678,142.54,142.48,17.86782]
[1745327791338,44.64964886,142.58,142.5,0.30782]
[1745327791635,24.54934417,142.57,142.5,0.30782]
[1745327791848,40.01341678,142.54,142.5,0.30782]
[1745327792046,40.01341678,142.53,142.48,17.86782]
[1745327792252,40.01341678,142.51,142.48,17.56]
[1745327792648,40.01341678,142.49,142.47,0.063]
[1745327792948,18.64964886,142.53,142.47,0.063]
[1745327793154,6.0239,142.56,142.48,40.01341678]
[1745327793355,18.64964886,142.56,142.5,40.01341678]
[1745327793537,40.01341678,142.53,142.49,40.32123678]
[1745327793732,7.01655907,142.52,142.49,0.30782]
[1745327793938,47.02997585,142.52,142.47,0.063]
[1745327794151,40.01341678,142.5,142.47,0.063]
[1745327794440,40.01341678,142.48,142.47,0.063]
[1745327794839,18.64964886,142.51,142.47,0.063]
[1745327795234,40.01341678,142.48,142.47,0.063]
[1745327795733,24.56140349,142.5,142.47,0.063]
[1745327795945,40.01341678,142.49,142.47,0.063]
[1745327796136,64.57482027,142.5,142.47,0.063]
[1745327796644,24.56140349,142.5,142.47,0.063]
[1745327796838,7.01754385,142.5,142.47,40.07641678]
[1745327797040,7.01754385,142.5,142.47,0.37082]
[1745327797250,7.01754385,142.5,142.47,0.063]
[1745327797442,47.03096063,142.5,142.47,0.063]
[1745327797751,40.01341678,142.49,142.47,0.063]
[1745327797954,40.01341678,142.48,142.47,0.063]
[1745327798545,40.01341678,142.49,142.47,0.063]
[1745327798756,40.01341678,142.48,142.47,0.063]
[1745327798950,24.56140349,142.5,142.47,0.063]
[1745327799140,40.01341678,142.49,142.47,0.063]
[1745327799657,40.01341678,142.48,142.47,0.063]
[1745327799850,47.03194569,142.48,142.47,0.063]
[1745327800451,7.01852891,142.48,142.47,0.063]
[1745327800759,7.0181929,142.49,142.47,0.063]
[1745327800959,40.01341678,142.5,142.47,0.063]
[1745327800960,47.02997585,142.52,142.47,0.063]
[1745327801257,40.01341678,142.51,142.47,0.063]
[1745327801454,24.55795676,142.52,142.47,0.37082]
[1745327801653,7.01655907,142.52,142.5,40.32123678]
[1745327801869,57.55234659,142.55,142.51,40.01341678]
[1745327802042,47.02800712,142.56,142.51,40.01341678]
[1745327802243,7.01459034,142.56,142.52,40.01341678]
[1745327802559,7.01459034,142.56,142.53,40.32123678]
[1745327802762,7.01459034,142.56,142.53,0.30782]
[1745327802963,7.01459034,142.56,142.52,40.32123678]
[1745327803258,7.01459034,142.56,142.51,40.32123678]
[1745327803259,47.02800712,142.56,142.51,40.32123678]
[1745327803441,40.01341678,142.55,142.5,0.30782]
[1745327803646,40.01341678,142.53,142.49,17.86782]
[1745327803856,7.01655907,142.52,142.5,40.01341678]
[1745327804067,7.01572611,142.54,142.51,40.32123678]
[1745327804247,40.01341678,142.56,142.52,40.32123678]
[1745327804436,26.0,142.55,142.51,0.30782]
[1745327804637,40.01341678,142.52,142.47,0.37082]
[1745327804832,40.01341678,142.51,142.47,0.37082]
[1745327805172,40.01341678,142.48,142.47,0.063]
[1745327805348,40.01341678,142.49,142.47,0.063]
[1745327805667,40.01341678,142.52,142.47,0.063]
[1745327805668,40.01341678,142.48,142.47,0.063]
[1745327806052,47.03194569,142.48,142.47,0.063]
[1745327806746,7.01852891,142.48,142.47,0.063]
[1745327807072,47.03194569,142.48,142.47,0.063]
[1745327808946,7.01852891,142.48,142.47,0.063]
[1745327809148,47.03194569,142.48,142.47,0.063]
[1745327810058,7.01852891,142.48,142.47,0.063]
[1745327810457,47.03194569,142.48,142.47,0.063]
[1745327810846,7.01852891,142.48,142.47,0.063]
[1745327811462,47.03194569,142.48,142.47,0.063]
[1745327811865,64.57826798,142.48,142.43,17.623]
[1745327812067,40.01341678,142.45,142.43,17.623]
[1745327812568,40.01341678,142.46,142.43,17.93082]
[1745327813145,64.57999219,142.47,142.43,17.93082]
[1745327813453,40.01341678,142.46,142.43,17.93082]
[1745327813762,40.01341678,142.46,142.43,17.623]
[1745327813958,40.01341678,142.44,142.43,0.063]
[1745327815169,24.56829986,142.46,142.43,0.063]
[1745327815363,40.01341678,142.44,142.43,0.063]
[1745327816272,47.03391663,142.44,142.43,0.063]
[1745327817159,7.02049985,142.44,142.43,0.063]
[1745327817356,47.03391663,142.44,142.43,0.063]
[1745327818776,7.02049985,142.44,142.43,0.063]
[1745327819078,7.01655907,142.52,142.47,0.30782]
[1745327819381,40.01341678,142.5,142.47,0.30782]
[1745327819664,40.01341678,142.49,142.45,0.30782]
[1745327819980,17.54372411,142.51,142.45,0.30782]
[1745327820281,17.54372411,142.51,142.46,0.30782]
[1745327820449,7.01606679,142.53,142.48,0.30782]
[1745327820647,7.01606679,142.53,142.5,0.30782]
[1745327820855,7.01606679,142.53,142.51,0.30782]
[1745327821075,7.01459034,142.56,142.51,40.32123678]
[1745327821255,7.01459034,142.56,142.52,40.32123678]
[1745327821457,47.02800712,142.56,142.53,0.30782]
[1745327821652,7.01459034,142.56,142.54,40.32123678]
[1745327821856,0.03,142.57,142.55,40.32123678]
[1745327822177,0.03,142.57,142.56,40.32123678]
[1745327823249,0.03,142.57,142.56,0.30782]
[1745327823682,0.03,142.57,142.56,40.32123678]
[1745327824173,0.03,142.57,142.56,0.30782]
[1745327824475,0.03,142.66,142.65,0.30782]
[1745327824660,0.03,142.66,142.65,18.12782]
[1745327824864,0.03,142.66,142.65,58.14123678]
[1745327825469,0.03,142.66,142.65,98.15465356]
[1745327825781,0.03,142.66,142.65,58.14123678]
[1745327827383,0.03,142.66,142.65,98.15465356]
[1745327827689,0.03,142.67,142.66,18.95746886]
[1745327827857,0.03,142.72,142.71,40.32123678]
[1745327828057,0.03,142.72,142.71,58.14123678]
[1745327829083,0.03,142.72,142.71,98.15465356]
[1745327829293,0.03,142.72,142.71,124.15465356]
[1745327829848,0.03,142.72,142.71,142.80430242]
[1745327830060,7.0019272,142.82,142.8,40.32123678]
[1745327830264,57.51507601,142.85,142.8,40.32123678]
[1745327830265,7.03231076,142.81,142.8,40.32123678]
[1745327830552,0.03,142.81,142.8,0.30782]
[1745327830750,0.03,142.81,142.78,18.10782]
[1745327831881,40.04341678,142.81,142.78,17.8]
[1745327832083,40.01341678,142.79,142.75,0.30782]
[1745327832266,40.01341678,142.76,142.72,0.30782]
[1745327832589,40.01341678,142.75,142.72,0.30782]
[1745327832952,40.01341678,142.73,142.69,0.30782]
[1745327833159,40.01341678,142.71,142.67,0.30782]
[1745327833386,40.01341678,142.7,142.66,0.30782]
[1745327833560,40.01341678,142.69,142.65,0.30782]
[1745327833758,40.01341678,142.66,142.61,0.30782]
[1745327833969,40.01341678,142.64,142.6,40.32123678]
[1745327834288,40.01341678,142.64,142.59,40.32123678]
[1745327834785,7.01114772,142.63,142.61,0.30782]
[1745327835157,40.01341678,142.62,142.59,0.30782]
[1745327835783,47.0245645,142.63,142.61,0.30782]
[1745327835982,17.52072067,142.69,142.63,0.30782]
[1745327836210,7.00869077,142.68,142.66,0.30782]
[1745327836785,47.02175086,142.69,142.65,0.30782]
[1745327836970,40.01341678,142.67,142.64,0.30782]
[1745327837172,7.00833408,142.69,142.66,0.30782]
[1745327837376,47.02175086,142.69,142.66,0.30782]
[1745327837680,40.01341678,142.67,142.64,0.30782]
[1745327837886,40.01341678,142.66,142.64,0.30782]
[1745327838084,40.01341678,142.65,142.63,0.30782]
[1745327838467,40.01341678,142.64,142.61,0.30782]
[1745327838665,0.03,142.74,142.63,40.01341678]
[1745327838870,0.03,142.74,142.73,40.01341678]
[1745327839077,0.03,142.74,142.73,40.32123678]
[1745327839797,0.03,142.74,142.73,0.30782]
[1745327840166,0.03,142.74,142.71,57.81341678]
[1745327840167,40.04341678,142.74,142.71,18.10782]
[1745327840565,40.01341678,142.73,142.71,18.10782]
[1745327840782,0.03,142.74,142.71,18.10782]
[1745327840783,0.03,142.74,142.72,0.30782]
[1745327840981,0.03,142.74,142.73,0.30782]
[1745327841182,0.03,142.74,142.72,40.32123678]
[1745327841388,0.03,142.74,142.73,0.30782]
[1745327841701,0.03,142.74,142.73,40.32123678]
[1745327842388,0.03,142.74,142.73,80.33465356]
[1745327842693,0.03,142.74,142.73,106.33465356]
[1745327842876,0.03,142.74,142.73,40.32123678]
[1745327843076,0.03,142.74,142.73,80.33465356]
[1745327843791,0.03,142.74,142.73,40.32123678]
[1745327844001,0.03,142.74,142.72,0.30782]
[1745327844174,0.03,142.74,142.73,40.32123678]
[1745327844495,0.03,142.74,142.73,0.30782]
[1745327844698,0.03,142.74,142.73,40.32123678]
[1745327845993,0.03,142.74,142.73,0.30782]
[1745327846372,0.03,142.74,142.73,40.32123678]
[1745327846588,0.03,142.74,142.73,80.33465356]
[1745327846792,0.03,142.74,142.73,40.32123678]
[1745327847491,0.03,142.74,142.73,0.30782]
[1745327847701,0.03,142.74,142.73,40.32123678]
[1745327848294,0.03,142.74,142.73,80.33465356]
[1745327849086,0.03,142.74,142.73,0.30782]
[1745327849403,0.03,142.74,142.73,80.33465356]
[1745327850808,0.03,142.74,142.73,40.32123678]
[1745327851183,0.03,142.74,142.73,0.30782]
[1745327851680,0.03,142.74,142.73,40.32123678]
[1745327854697,0.03,142.74,142.73,0.30782]
[1745327856311,39.54341678,142.77,142.73,0.30782]
[1745327856613,26.0,142.79,142.75,0.30782]
[1745327856917,26.0,142.79,142.76,0.30782]
[1745327857123,0.03,142.8,142.78,0.30782]
[1745327857710,40.04341678,142.8,142.78,0.30782]
[1745327858102,40.01341678,142.79,142.76,0.30782]
[1745327858301,40.01341678,142.77,142.75,0.30782]
[1745327858910,40.01341678,142.77,142.76,0.30782]
[1745327859306,40.01341678,142.77,142.75,0.30782]
[1745327859511,66.04341678,142.8,142.75,0.30782]
[1745327859689,40.01341678,142.78,142.76,0.30782]
[1745327860097,40.01341678,142.77,142.76,0.30782]
[1745327860502,40.01341678,142.78,142.75,0.30782]
[1745327860687,40.01341678,142.78,142.76,0.30782]
[1745327861005,26.03,142.8,142.76,0.30782]
[1745327861511,0.03,142.8,142.78,0.30782]
[1745327861710,40.01341678,142.79,142.74,0.30782]
[1745327861910,40.01341678,142.75,142.74,0.30782]
[1745327862213,40.01341678,142.75,142.73,0.30782]
[1745327862407,40.01341678,142.74,142.73,0.30782]
[1745327862609,40.01341678,142.74,142.71,0.30782]
[1745327862793,40.01341678,142.75,142.74,0.30782]
[1745327863400,40.01341678,142.75,142.73,0.30782]
[1745327863711,40.01341678,142.75,142.74,0.30782]
[1745327864892,40.01341678,142.77,142.76,0.30782]
[1745327865113,40.01341678,142.78,142.76,0.30782]
[1745327865418,40.01341678,142.78,142.77,0.30782]
[1745327865588,0.03,142.8,142.77,0.30782]
[1745327865917,40.04341678,142.8,142.78,0.30782]
[1745327866091,40.04341678,142.8,142.79,0.30782]
[1745327866503,0.03,142.8,142.79,0.30782]
[1745327867098,0.03,142.8,142.78,0.30782]
[1745327867315,0.03,142.8,142.79,0.30782]
[1745327867517,40.04341678,142.8,142.79,0.30782]
[1745327867813,80.05683356,142.8,142.75,0.30782]
[1745327868123,40.01341678,142.79,142.77,0.30782]
[1745327868317,40.04341678,142.8,142.77,0.30782]
[1745327868515,40.01341678,142.79,142.77,0.30782]
[1745327868731,40.01341678,142.78,142.77,0.30782]
[1745327869522,0.03,142.8,142.79,0.30782]
[1745327871522,25.85566161,142.81,142.79,0.30782]
[1745327871826,40.01341678,142.8,142.79,0.30782]
[1745327872033,40.01341678,142.8,142.78,0.30782]
[1745327872332,40.01341678,142.79,142.78,0.30782]
[1745327872528,8.58992861,142.82,142.79,0.30782]
[1745327872827,40.01341678,142.8,142.78,0.30782]
[1745327873027,40.01341678,142.79,142.78,0.30782]
[1745327873215,40.01341678,142.8,142.79,0.30782]
[1745327873415,26.34647518,142.8,142.78,0.30782]
[1745327873615,26.34647518,142.79,142.78,0.30782]
[1745327874326,7.0024246,142.81,142.79,0.30782]
[1745327874709,26.34647518,142.8,142.79,0.30782]
[1745327874916,26.34647518,142.8,142.77,0.30782]
[1745327875214,26.34647518,142.79,142.78,0.30782]
[1745327875618,26.34647518,142.79,142.77,0.30782]
[1745327875815,26.34647518,142.78,142.76,0.30782]
[1745327876012,26.34647518,142.77,142.76,0.30782]
[1745327877227,26.34647518,142.77,142.75,0.30782]
[1745327877415,26.34647518,142.77,142.72,18.22]
[1745327877416,33.35123841,142.76,142.74,0.30782]
[1745327877620,26.34647518,142.76,142.75,0.30782]
[1745327877824,7.00329154,142.79,142.78,0.30782]
[1745327878121,33.34976672,142.79,142.78,0.30782]
[1745327878437,26.34647518,142.79,142.78,0.30782]
[1745327879329,7.0025069,142.81,142.79,0.30782]
[1745327879529,26.34647518,142.8,142.79,0.30782]
[1745327879913,26.34647518,142.8,142.78,0.30782]
[1745327880120,26.34647518,142.79,142.78,0.30782]
[1745327880916,26.34647518,142.8,142.79,0.30782]
[1745327881252,8.58991526,142.82,142.8,0.30782]
[1745327881529,7.00207677,142.82,142.8,0.30782]
[1745327881829,26.34647518,142.81,142.8,0.30782]
[1745327882234,26.34647518,142.81,142.79,0.30782]
[1745327882420,26.34647518,142.81,142.8,0.30782]
[1745327883012,26.34647518,142.81,142.79,0.30782]
[1745327883214,26.34647518,142.8,142.79,0.30782]
[1745327885322,26.34647518,142.8,142.78,0.30782]
[1745327885524,7.00254074,142.81,142.79,0.30782]
[1745327885726,26.34647518,142.8,142.78,0.30782]
[1745327885933,26.34647518,142.79,142.78,0.30782]
[1745327886416,26.34647518,142.8,142.77,0.30782]
[1745327886750,26.34647518,142.78,142.77,0.30782]
[1745327887545,7.00133025,142.83,142.79,0.30782]
[1745327887718,7.00133025,142.83,142.8,0.30782]
[1745327887923,26.34647518,142.81,142.8,0.30782]
[1745327888231,26.34647518,142.81,142.79,0.30782]
[1745327888439,26.34647518,142.8,142.79,0.30782]
[1745327888744,26.34647518,142.81,142.8,0.30782]
[1745327889239,26.34647518,142.81,142.79,0.30782]
[1745327889446,26.34647518,142.81,142.8,0.30782]
[1745327889630,7.0022451,142.82,142.8,0.30782]
[1745327889948,26.34647518,142.81,142.8,0.30782]
[1745327891757,33.34878594,142.81,142.79,0.30782]
[1745327891933,7.00231076,142.81,142.8,0.30782]
[1745327892134,33.34878594,142.81,142.8,0.30782]
[1745327892334,33.34878594,142.81,142.79,0.30782]
[1745327892663,7.00231076,142.81,142.79,0.30782]
[1745327892825,7.00231076,142.81,142.73,0.30782]
[1745327893030,18.64964886,142.8,142.74,0.30782]
[1745327893329,7.00329154,142.79,142.75,0.30782]
[1745327893851,26.34647518,142.76,142.74,0.30782]
[1745327894027,7.00329154,142.79,142.75,0.30782]
[1745327894334,26.34647518,142.76,142.73,0.30782]
[1745327894651,26.34647518,142.74,142.73,0.30782]
[1745327895148,18.64964886,142.73,142.68,0.30782]
[1745327895455,18.64964886,142.73,142.66,0.063]
[1745327895456,7.00869077,142.68,142.66,0.063]
[1745327895746,26.34647518,142.67,142.66,0.063]
[1745327896629,71.34259922,142.67,142.66,1e-08]
[1745327897050,71.34259922,142.67,142.64,0.063]
[1745327897252,52.00825502,142.61,142.6,0.063]
[1745327897749,33.35860616,142.61,142.6,0.063]
[1745327898358,52.00825502,142.61,142.6,0.063]
[1745327898658,78.3547302,142.61,142.6,1e-08]
[1745327898860,18.64964886,142.6,142.57,0.063]